Cogmind - Beta 16 @@@ ROGUE MODE // 2025.11.25 @ 16:37:43 Player: shapeshifter Result: Destroyed by D-53 Grenadier with Mini Grenade Launcher Performance ------------- Evolutions (0) 0 Regions Visited (2) 400 Robots Destroyed (11) 55 Value Destroyed (265) 265 Prototype IDs (0) 0 Alien Tech Used (0) 0 Bonus (0) 0 TOTAL SCORE: 720 Bonus ------- None Cogmind --------- Core Integrity 0/250 Matter 225/300 Energy 84/100 System Corruption 1% Temperature Cool (0) Movement Walking (120) Location -10/Mines Parts ------- > --- POWER (1) -------- (None) > --- PROPULSION (2) --- Carbon-fiber Leg Carbon-fiber Leg > --- UTILITY (2) ------ Large Storage Unit Seismic Detector > --- WEAPON (2) ------- Assault Rifle > --- INVENTORY (15) --- Carbon-fiber Leg Wheel Wheel High-capacity Storage Unit Recoil Stabilizer Particle Charger Tractor Beam Light Assault Rifle Peak State ------------ > --- POWER ------------ Ion Engine > --- PROPULSION ------- Light Treads Carbon-fiber Leg > --- UTILITY ---------- Large Storage Unit Seismic Detector > --- WEAPON ----------- Field Laser Flak Cannon > --- INVENTORY -------- Wheel Wheel High-capacity Storage Unit Recoil Stabilizer Particle Charger Tractor Beam Small Laser Assault Rifle Light Assault Rifle [Rating: 14] Favorites ----------- Power Ion Engine Engine Ion Engine Propulsion Light Treads Treads Light Treads Leg Carbon-fiber Leg Utility Large Storage Unit Device Seismic Detector Storage Large Storage Unit Weapon Small Laser Energy Gun Small Laser Ballistic Gun Assault Rifle Ballistic Cannon Flak Cannon Build | -11 -10 -10 ------- Run | Yrd Mat Min Slots Evolved . | . . . Power . | . . . Propulsion . | . . . Utility . | . . . Weapon . | . . . Parts Attached 13 | 6 1 6 Power 2 | 1 . 1 Engine 2 | 1 . 1 Core . | . . . Reactor . | . . . Propulsion 4 | 2 . 2 Treads 2 | 2 . . Leg 2 | . . 2 Wheel . | . . . Hover . | . . . Flight . | . . . Utility 3 | 1 1 1 Device 1 | . . 1 Storage 2 | 1 1 . Processor . | . . . Hackware . | . . . Protection . | . . . Artifact . | . . . Weapon 4 | 2 . 2 Energy Gun 2 | 1 . 1 Energy Cannon . | . . . Ballistic Gun 1 | 1 . . Ballistic Cannon 1 | . . 1 Launcher . | . . . Special Weapon . | . . . Impact Weapon . | . . . Slashing Weapon . | . . . Piercing Weapon . | . . . Special Melee Weapon . | . . . Unidentified Prototypes . | . . . Parts Lost 6 | . . 6 Power 2 | . . 2 Propulsion 1 | . . 1 Utility . | . . . Weapon 3 | . . 3 Highest Loss Streak 3 | . . 3 To Critical Strikes . | . . . Average Backups 7 | 4 7 9 Power . | . 1 . Propulsion 2 | 2 2 2 Utility 2 | . 2 3 Weapon 1 | . 1 2 Tool/Special . | . . . Unused Backups 9 | . 2 7 Power . | . . . Propulsion 4 | . 2 2 Utility 4 | . . 4 Weapon 1 | . . 1 Tool/Special . | . . . Average Slot Usage (%) 85 | . 85 88 Engine 13 | . 14 12 Treads 25 | . 28 18 Leg 2 | . . 8 Device 2 | . . 10 Storage 14 | . 14 14 Energy Gun 12 | . 14 9 Ballistic Gun 11 | . 14 3 Ballistic Cannon 2 | . . 10 Peak Build Rating 14 | 6 7 14 Average Rating 6 | 4 6 10 On Entrance 4 | . 6 6 Avg Prop Armor Cover (%) 8 | . . 8 Naked Turns . | . . . Heaviest Build 35 | 13 28 35 Greatest Support 40 | 40 40 40 Greatest Overweight (x) 1 | . . 1 Average Overweight (x) . | . . . Largest Inventory Capacity 15 | 8 15 15 Average Capacity 11 | 7 11 15 Most Carried 12 | 8 8 12 Average Carried 7 | 5 7 9 Final Capacity 15 | 8 15 15 Final Carried 8 | 8 7 8 Class Distribution -------------------- 100% | Mutant Dominant Class ---------------- Mutant | -10/Materials Mutant | -10/Mines Resources | -11 -10 -10 ----------- Run | Yrd Mat Min Matter Collected 506 | 252 123 131 Remotely . | . . . Salvage Created 478 | 128 319 31 Parts 23 | 9 14 . Haulers Intercepted . | . . . Recyclers Shooed . | . . . Parts Field Recycled . | . . . Retrieved Matter . | . . . Parts Self-Destructed . | . . . Prevented . | . . . Parts Restored . | . . . Kills | -11 -10 -10 ------- Run | Yrd Mat Min Combat Hostiles Destroyed 17 | . 7 10 Guns 8 | . 7 1 Cannons 9 | . . 9 Classes Destroyed 4 | 2 1 1 Tunneler 3 | 3 . . Recycler 1 | 1 . . Grunt 7 | . 7 . Assembled 10 | . . 10 Best Kill Streak 10 | 4 3 10 Combat Bots Only 10 | . 3 10 Max Kills in Single Turn 1 | 1 1 1 Gunslinging . | . . . Exploded . | . . . Melee . | . . . Uniques/NPCs Destroyed . | . . . Combat | -11 -10 -10 -------- Run | Yrd Mat Min Hostile Shots Fired 79 | . 46 33 Missed 13 | . 13 . Hits 66 | . 33 33 Melee 6 | . . 6 Projectile 60 | . 33 27 AOE 9 | . . 9 Damage Taken 1158 | . 364 794 Core 266 | . 65 201 Absorbed by Shields . | . . . Core Remaining (%) 100 | 100 . . Volleys Fired 61 | 9 26 26 Largest 2 | 2 2 2 Hottest 100 | 60 60 100 Shots Fired 101 | 18 52 31 Gun 75 | 18 52 5 Cannon 26 | . . 26 Launcher . | . . . Special . | . . . Kinetic 61 | 9 26 26 Thermal 40 | 9 26 5 Explosive . | . . . Electromagnetic . | . . . Robot Hit Streak 9 | 4 9 6 Robot Miss Streak 8 | 4 2 8 Penetration Max . | . . . Secondary Targets 1 | . 1 . Max Gunslinging Chain 1 | . 1 . Shots Hit Robots 70 | 10 32 28 Core Hits 53 | 5 15 33 Critical Kills . | . . . Critical Parts Destroyed . | . . . Critical Strikes . | . . . Melee Attacks . | . . . Impact . | . . . Slashing . | . . . Piercing . | . . . Sneak Attacks . | . . . Combat Hostiles . | . . . Follow-up Attacks . | . . . Damage Inflicted 1013 | 128 412 473 Guns 574 | 128 412 34 Cannons 439 | . . 439 Explosions . | . . . Melee . | . . . Ramming . | . . . Kinetic 743 | 84 220 439 Thermal 270 | 44 192 34 Explosive . | . . . Electromagnetic . | . . . Impact . | . . . Slashing . | . . . Piercing . | . . . Highest Corruption 1 | . . 1 Average Corruption 1 | . . 1 Corruption Purged . | . . . Corruption Blocked . | . . . Overload Shots . | . . . Overflow Damage 3 | . . 3 Projectiles 3 | . . 3 Explosions . | . . . Melee . | . . . Knockbacks 1 | . . 1 Impact . | . . . Kinetic 1 | . . 1 Secondary . | . . . Self-Inflicted Damage . | . . . Shots . | . . . Rammed . | . . . Targets Rammed . | . . . Kicked . | . . . Crushed . | . . . Highest Temperature 156 | . 84 156 Average Temperature 58 | . 32 96 Received Heat Transfer 258 | . 198 60 Siege Activations . | . . . Martial Activations . | . . . Shielding Activations . | . . . Robots Disrupted . | . . . Combat Hostiles . | . . . Robots Corrupted . | . . . Combat Hostiles . | . . . Parts Fried . | . . . Impact Corruptions . | . . . Robots Melted . | . . . Combat Hostiles . | . . . Parts Melted . | . . . Heat Transferred 599 | 100 425 74 Parts Sabotaged . | . . . Parts Stolen . | . . . Parts Stripped . | . . . Power Chain Reactions . | . . . Alert | -11 -10 -10 ------- Run | Yrd Mat Min Maximum Alert Level . | . . . Low Security (%) 100 | 100 100 100 Level 1 . | . . . Level 2 . | . . . Level 3 . | . . . Level 4 . | . . . Level 5 . | . . . High Security . | . . . Max Security . | . . . Peak Influence 110 | 15 110 34 Initial 34 | . . 34 Average 25 | 2 39 9 Influence Increases 260 | 20 240 . Destroy 0b10 Robot/C 140 | . 140 . Destroy 0b10 Robot/NC 20 | 20 . . Destroy Leader 30 | . 30 . Successful Hack 10 | . 10 . Select Force Hacks 60 | . 60 . Influence Decreases 260 | 20 150 90 Entered New Map 56 | . . 56 Time Decay 194 | 20 150 24 Lost Part 10 | . . 10 Squads Dispatched 6 | . 5 1 Investigation 4 | . 3 1 Extermination . | . . . Reinforcement 2 | . 2 . Assault . | . . . Garrison . | . . . Intercept . | . . . Searches Triggered . | . . . Construction Impeded . | . . . Haulers Reinforced . | . . . Active Scanning Responses . | . . . Cargo Convoy Interrupts . | . . . Stealth | -11 -10 -10 --------- Run | Yrd Mat Min Distress Signals 3 | . 2 1 Communications Jammed . | . . . Distress Signals . | . . . Times Spotted 24 | . 10 14 Peak Tracking Total 12 | . 5 12 Tactical Retreats 1 | . . 1 Traps | -11 -10 -10 ------- Run | Yrd Mat Min Traps Triggered . | . . . Indirectly . | . . . Trap Hack Attempts . | . . . Triggered . | . . . Disarmed . | . . . Reprogrammed . | . . . Reused . | . . . Traps Extracted . | . . . Installed . | . . . Triggered . | . . . Machines | -11 -10 -10 ---------- Run | Yrd Mat Min Machines Disabled . | . . . Max in Single Turn . | . . . Machines Repaired . | . . . Machines Dismantled . | . . . Machines Sabotaged . | . . . Overloaded Fab Kills . | . . . Hacking | -11 -10 -10 --------- Run | Yrd Mat Min Machines Accessed 6 | . 5 1 Terminals 3 | . 3 . Fabricators . | . . . Repair Stations . | . . . Recycling Units 2 | . 2 . Scanalyzers . | . . . Garrison Access . | . . . Total Hacks 14 | . 13 1 Successful 10 | . 9 1 Failed 4 | . 4 . Catastrophic 3 | . 3 . Database Lockouts . | . . . Manual 9 | . 9 . Terminals 7 | . 7 . Fabricators . | . . . Repair Stations . | . . . Recycling Units 6 | . 6 . Scanalyzers . | . . . Garrison Access . | . . . Terminal Hacks 2 | . 1 1 Open Door 1 | . . 1 Zone Layout 1 | . 1 . Fabricator Hacks . | . . . Repair Station Hacks . | . . . Recycling Unit Hacks 2 | . 2 . Retrieve Components 2 | . 2 . Scanalyzer . | . . . Garrison Access Hacks . | . . . Unauthorized Hacks 6 | . 6 . Terminals 4 | . 4 . Botnet 1 | . 1 . Skim 2 | . 2 . Search 1 | . 1 . Fabricators . | . . . Repair Stations . | . . . Recycling Units 2 | . 2 . Tunnel 2 | . 2 . Scanalyzers . | . . . Garrison Access . | . . . Data Cores Recovered . | . . . Used . | . . . Hacking Detections 4 | . 4 . Full Trace Events . | . . . Feedback Events . | . . . Feedback Blocked . | . . . Robot Schematics Acquired . | . . . Robots Built . | . . . Authchips . | . . . Time . | . . . Total Robot Build Rating . | . . . Part Schematics Acquired . | . . . Parts Built . | . . . Authchips . | . . . Time . | . . . Total Part Build Rating . | . . . Part Studies Acquired . | . . . Parts Repaired . | . . . Time . | . . . Parts Recycled . | . . . Recycled Matter . | . . . Retrieved Matter . | . . . Retrieved Components 11 | . 11 . Parts Scanalyzed . | . . . Part Schematics Acquired . | . . . Parts Damaged . | . . . Bothacking | -11 -10 -10 ------------ Run | Yrd Mat Min Used RIF Installer . | . . . Robots Hacked . | . . . Non-combat . | . . . Combat . | . . . Robot Hacks Applied . | . . . Relay Couplers Released . | . . . Fabnet Peak Effective % . | . . . Robots Rewired . | . . . Allies Hacked . | . . . Hacks Repelled . | . . . Allies | -11 -10 -10 -------- Run | Yrd Mat Min Total Allies . | . . . Largest Group . | . . . Highest-Rated Group . | . . . Highest-Rated Ally . | . . . Total Orders . | . . . Ally Attacks . | . . . Total Damage . | . . . Kills . | . . . Allies Corrupted . | . . . Allies Melted . | . . . Intel | -11 -10 -10 ------- Run | Yrd Mat Min Active Infowar (turns) 114 | . . 114 Seismic 114 | . . 114 Robot Analysis Total . | . . . Derelict Logs Recovered . | . . . Drone Launches . | . . . Drone Recoveries . | . . . Exploration | -11 -10 -10 ------------- Run | Yrd Mat Min Turns Passed 657 | 126 388 143 Spaces Moved 285 | 59 190 36 Core 17 | 17 . . Treads 255 | 42 190 23 Legs 13 | . . 13 Wheels . | . . . Hover . | . . . Flight . | . . . Fastest Speed 50 | 50 160 160 Average Speed 156 | 128 160 181 Slowest Speed 240 | 160 160 240 Overloaded Moves . | . . . Propulsion Burnouts . | . . . Robots Hopped . | . . . Potential Cave-ins . | . . . Cave-ins Triggered . | . . . Exploration Rate (%) 18 | 5 36 15 Regions Visited 2 Branch Regions 1 Pre-discovered Areas 2 | . 2 . Known Exits Taken . | . . . Unknown Exits Taken 2 | 1 1 . Scrap Searched . | . . . Spaces Dug . | . . . Terrain Destroyed . | . . . Melee . | . . . Projectile . | . . . AOE . | . . . Terrain Rammed . | . . . Walls Destroyed . | . . . Machines Disabled . | . . . Actions | -11 -10 -10 --------- Run | Yrd Mat Min Total 397 | 91 224 82 Wait 11 | 4 3 4 Move 283 | 58 189 36 Hop . | . . . Pick Up 23 | 14 2 7 Fast Attach . | . . . Attach 13 | 6 1 6 Detach . | . . . Swap 2 | . . 2 Drop 4 | . 3 1 Fire 61 | 9 26 26 Melee . | . . . Ram . | . . . Kick . | . . . Crush . | . . . Escape Stasis . | . . . Rewire . | . . . Trap . | . . . Miscellaneous . | . . . Route ------- -11/Scrapyard -10/Materials (discovered 2 exits: [*Mat] / *Min) -10/Mines History --------- Turn | Location | Event 9 | -11/Scrapyard | Discovered new exit (range 15) 127 | -11/Scrapyard | Entered Materials 308 | -10/Materials | Build established: Mutant 364 | -10/Materials | Discovered new exit (range 16) 429 | -10/Materials | Discovered new exit (range 9) 515 | -10/Materials | Entered Mines 520 | -10/Mines | Assembled infested the area 520 | -10/Mines | Met a Derelict shopkeep closing up shop 525 | -10/Mines | Assisted by a Guerilla fighting off Assembled 628 | -10/Mines | Destroyed 10 combat bots 630 | -10/Mines | Lost 3 parts (1p1n1w) 655 | -10/Mines | Core integrity fell below 50% 658 | -10/Mines | Core integrity fell below 20% 658 | -10/Mines | Destroyed by D-53 Grenadier with Mini Grenade Launcher Last Messages --------------- 00603_ as-59203 destroyed. 00607_ as-28312 destroyed. 00609_ Acquired 16 matter. 00612_ Acquired 4 matter. 00616_ Acquired 61 matter. 00621_ Dropped Lgt. Treads. 00622_ Acquired Carbon-fiber Leg. 00624_ Acquired 50 matter. 00628_ Acquired Carbon-fiber Leg. 00651_ U-05 Engineer builds a Wall. 00654_ D-53 Grenadier knocked back. 00655_ The unstable cave ceiling collapses. 00655_ Sml. Laser destroyed. 00655_ Flak Cannon destroyed. 00655_ U-05 Engineer lays Concrete. 00656_ The unstable cave ceiling collapses. 00656_ U-05 Engineer lays Concrete. 00657_ Ion Engine destroyed. 00657_ D-53 Grenadier destroyed. 00657_ U-05 Engineer lays Concrete. Map ----- +----------------------------------------------------+ | ?????????????????????????????????????????????????? | | ?????????????????????????????????????????????????? | | ?????????????????????????????????????????????????? | | ?????????????????????????????????????????????????? | | ?????????????????????????????????????????????????? | | ?????????????????????????????????????????????????? | | ?????????????????????????????????????????????????? | | ?????????????????????????????????????????????????? | | ?????????????????????????????????????????????????? | | ?????????????????????????????????????????????????? | | ?????????????????????????????????????????????????? | | ?????????????????????????????????????????????????? | | ?????????????????????????????????????????????????? | | ??????????????????????????????????????######?????? | | ?????????????????????????????????????##""""##????? | | ?????????????????????????????????????#" ! "#????? | | ?????????????????????????????????????#" "#????? | | ?????????????????????????????????????## ##????? | | ?????????????????????????????????????### ###????? | | ?????????????????????????????????????# X ####?? | | ??????????????????????#########??????# #?? | | ?????????????????#???## ##??#### #?? | | ?????????????????# ## #??# % #?? | | ?????????????????# #### ## #?? | | ?????????????????# % =## #?? | | ?????????????????# < @ ## #?? | | ????????????????# ####### #?? | | ???????????????# d #?????# #?? | | ???????????????# #?????# #?? | | ???????????????## #####?????###########?? | | ????????????????# ?????????????????????? | | ????????????????## t ?????????????????????? | | ?????????????????### ##????????????????????? | | ??????????????????# ###?????????????????????? | | ?????????????????? # ????????????????????????? | | ?????????????????# ????????????????????????? | | ????????????????? ## ????????????????????????? | | ???????????????? ##u ????????????????????????? | | ??????????????????? ????????????????????????? | | ????????????????????? ????????????????????????? | | ??????????????????????? ????????????????????????? | | ?????????????????????????????????????????????????? | | ?????????????????????????????????????????????????? | | ?????????????????????????????????????????????????? | | ?????????????????????????????????????????????????? | | ?????????????????????????????????????????????????? | | ?????????????????????????????????????????????????? | | ?????????????????????????????????????????????????? | | ?????????????????????????????????????????????????? | | ?????????????????????????????????????????????????? | +----------------------------------------------------+ Best States ------------- Heat Dissipation 25 Energy Generation 10 Energy Capacity 250 Matter Stores 300 Matter Capacity 300 Sight Range 16 Terrain Scan Density 10 Evasion (%) 50 Recoil Reduction 2 Item Schematics ----------------- None Robot Schematics ------------------ None Fabricated ------------ Nothing Repaired ---------- Nothing Studied --------- None Alien Tech Used ----------------- None Achievements -------------- None Challenges ------------ None Game ------ Seed SpreadTacticalGriptreads Manual? 0 Play Time 00:07:26 Cumulative 549.5 hours Start 2025.11.25 @ 16:29:48 End 2025.11.25 @ 16:37:43 Sessions 1 Manual Loads 0 Difficulty Rogue Special Mode None Game No. 721 Rogue 721 Adventurer 0 Explorer 0 Win Type - Total 19 Types 8/1/2/2/2/0/2/2/0/0 Lore% 93 Gallery% 86 Achievement% 71 Wizard Run 0 Options --------- Layout 2 ASCII 0 Keyboard 0 Movement Mouse Keybinds 0 Fullscreen 2 Font 24/Tamsyn Map View 50x44 Zoom Use 0% Tactical HUD 1 Map Filters NONE Filters NONE Steam 1 RUN: 97aff86c-6884-4a35-87c6-e0a80753eac0